[Event "Late-Titled-Tuesday-Blitz-April-30-2024"]
[Site "Chess.com"]
[Date "2024.04.30"]
[Round "8"]
[White "zano2023"]
[Black "1g60-1"]
[Result "1-0"]
[WhiteElo "2174"]
[BlackElo "2416"]
[TimeControl "180+1"]
[EndTime "15:25:15 PDT"]
[Termination "zano2023 won by checkmate"]

1. d4 {[%clk 0:03:00.9]} 1... e6 {[%clk 0:02:59.6]} 2. Nf3 {[%clk 0:03:00.1]}
2... f5 {[%clk 0:02:59.3]} 3. Nbd2 {[%clk 0:03:00.8]} 3... Nf6 {[%clk
0:03:00.1]} 4. e3 {[%clk 0:03:00.3]} 4... Be7 {[%clk 0:03:00.3]} 5. Bd3 {[%clk
0:03:00.5]} 5... O-O {[%clk 0:03:01.2]} 6. O-O {[%clk 0:03:00.4]} 6... d5 {[%clk
0:03:01.8]} 7. c4 {[%clk 0:02:57.6]} 7... c6 {[%clk 0:03:00.8]} 8. b3 {[%clk
0:02:57.8]} 8... Ne4 {[%clk 0:03:01.3]} 9. Bb2 {[%clk 0:02:58.4]} 9... a5 {[%clk
0:03:01.6]} 10. a3 {[%clk 0:02:57]} 10... Nd7 {[%clk 0:03:01.1]} 11. Ne5 {[%clk
0:02:55.9]} 11... Nxe5 {[%clk 0:03:01]} 12. dxe5 {[%clk 0:02:55.7]} 12... Bd7
{[%clk 0:03:01.3]} 13. f3 {[%clk 0:02:55.6]} 13... Nxd2 {[%clk 0:03:01.6]} 14.
Qxd2 {[%clk 0:02:53.5]} 14... a4 {[%clk 0:03:02.2]} 15. b4 {[%clk 0:02:52.8]}
15... dxc4 {[%clk 0:02:58.3]} 16. Bxc4 {[%clk 0:02:52.3]} 16... Qc7 {[%clk
0:02:58.5]} 17. Rad1 {[%clk 0:02:50.2]} 17... Rad8 {[%clk 0:02:58.5]} 18. Qc2
{[%clk 0:02:49.2]} 18... c5 {[%clk 0:02:57.2]} 19. b5 {[%clk 0:02:46]} 19... Qb6
{[%clk 0:02:52.5]} 20. Qxa4 {[%clk 0:02:42.9]} 20... f4 {[%clk 0:02:48.8]} 21.
e4 {[%clk 0:02:39.1]} 21... h6 {[%clk 0:02:32.4]} 22. Qb3 {[%clk 0:02:38.7]}
22... Kh7 {[%clk 0:02:31.8]} 23. a4 {[%clk 0:02:37.8]} 23... Bc8 {[%clk
0:02:27.3]} 24. Bc3 {[%clk 0:02:35.4]} 24... Rxd1 {[%clk 0:02:26]} 25. Rxd1
{[%clk 0:02:34.8]} 25... Rd8 {[%clk 0:02:26.3]} 26. Rxd8 {[%clk 0:02:23.7]}
26... Qxd8 {[%clk 0:02:26.5]} 27. h3 {[%clk 0:02:22]} 27... Bh4 {[%clk
0:02:25.3]} 28. a5 {[%clk 0:02:15.2]} 28... Bg3 {[%clk 0:02:11]} 29. Kf1 {[%clk
0:02:04.9]} 29... g5 {[%clk 0:02:07.9]} 30. Ke2 {[%clk 0:02:04.1]} 30... h5
{[%clk 0:02:07.1]} 31. Bxe6 {[%clk 0:02:01]} 31... g4 {[%clk 0:01:53.9]} 32.
hxg4 {[%clk 0:01:44]} 32... hxg4 {[%clk 0:01:53.9]} 33. Bxc8 {[%clk 0:01:41.2]}
33... gxf3+ {[%clk 0:01:52.5]} 34. gxf3 {[%clk 0:01:40.3]} 34... Qxc8 {[%clk
0:01:51.6]} 35. Qf7+ {[%clk 0:01:39.8]} 35... Kh6 {[%clk 0:01:47.9]} 36. e6
{[%clk 0:01:32.7]} 36... Qd8 {[%clk 0:01:41.6]} 37. Bf6 {[%clk 0:01:26.8]} 37...
Qxa5 {[%clk 0:01:35.3]} 38. Qg7+ {[%clk 0:01:26.6]} 38... Kh5 {[%clk 0:01:35.3]}
39. Qg5# {[%clk 0:01:26.7]} 1-0

[Event "Late-Titled-Tuesday-Blitz-April-30-2024"]
[Site "Chess.com"]
[Date "2024.04.30"]
[Round "8"]
[White "lamomiajunior"]
[Black "ural58"]
[Result "1-0"]
[WhiteElo "2738"]
[BlackElo "2543"]
[TimeControl "180+1"]
[EndTime "15:26:01 PDT"]
[Termination "lamomiajunior won on time"]

1. d4 {[%clk 0:03:00.9]} 1... d5 {[%clk 0:02:57.1]} 2. Nc3 {[%clk 0:03:01.4]}
2... Nf6 {[%clk 0:02:56.2]} 3. Bf4 {[%clk 0:03:01.9]} 3... a6 {[%clk 0:02:54.1]}
4. e3 {[%clk 0:03:02.2]} 4... Bf5 {[%clk 0:02:52.9]} 5. Nf3 {[%clk 0:03:01.4]}
5... e6 {[%clk 0:02:52.8]} 6. Ne5 {[%clk 0:03:02.1]} 6... Nbd7 {[%clk
0:02:52.6]} 7. g4 {[%clk 0:03:02.2]} 7... Bg6 {[%clk 0:02:51.6]} 8. h4 {[%clk
0:03:02.9]} 8... h5 {[%clk 0:02:38.2]} 9. Nxg6 {[%clk 0:03:02.5]} 9... fxg6
{[%clk 0:02:38.8]} 10. g5 {[%clk 0:03:01.8]} 10... Ne4 {[%clk 0:02:33.8]} 11.
Nxe4 {[%clk 0:03:01.3]} 11... dxe4 {[%clk 0:02:26.7]} 12. Bg2 {[%clk 0:03:01.8]}
12... Bd6 {[%clk 0:02:23.5]} 13. Bxe4 {[%clk 0:03:00.1]} 13... Bxf4 {[%clk
0:02:15.1]} 14. Bxg6+ {[%clk 0:03:00.1]} 14... Ke7 {[%clk 0:02:14.9]} 15. exf4
{[%clk 0:03:00.3]} 15... c5 {[%clk 0:02:11]} 16. Qe2 {[%clk 0:02:59.5]} 16...
cxd4 {[%clk 0:02:03]} 17. O-O-O {[%clk 0:03:00.1]} 17... Qa5 {[%clk 0:01:59.2]}
18. Rhe1 {[%clk 0:02:56]} 18... Nf8 {[%clk 0:01:58]} 19. Kb1 {[%clk 0:02:50.2]}
19... Rd8 {[%clk 0:01:54.1]} 20. f5 {[%clk 0:02:50.1]} 20... Rd6 {[%clk
0:01:51.6]} 21. Bxh5 {[%clk 0:02:50.3]} 21... Qxf5 {[%clk 0:01:43.8]} 22. Bg4
{[%clk 0:02:49.4]} 22... Qd5 {[%clk 0:01:43.3]} 23. Bf3 {[%clk 0:02:46.8]} 23...
Qb5 {[%clk 0:01:28]} 24. Qxb5 {[%clk 0:02:45.5]} 24... axb5 {[%clk 0:01:25.5]}
25. h5 {[%clk 0:02:46.4]} 25... b6 {[%clk 0:01:22.1]} 26. Re4 {[%clk 0:02:44.7]}
26... Rd5 {[%clk 0:01:14.6]} 27. Rexd4 {[%clk 0:02:44.1]} 27... Rxg5 {[%clk
0:01:14.3]} 28. a3 {[%clk 0:02:40.1]} 28... Rf5 {[%clk 0:00:31.5]} 29. R1d3
{[%clk 0:02:39.6]} 29... Rh6 {[%clk 0:00:22.6]} 30. Rg4 {[%clk 0:02:28.4]} 30...
Kf7 {[%clk 0:00:16.1]} 31. Rg2 {[%clk 0:02:27.7]} 31... Rhf6 {[%clk 0:00:11.1]}
32. Rg3 {[%clk 0:02:24.8]} 32... e5 {[%clk 0:00:10.8]} 33. Bd5+ {[%clk
0:02:23.5]} 33... Ke8 {[%clk 0:00:08.4]} 34. Rxg7 {[%clk 0:02:23.5]} 34... Rxf2
{[%clk 0:00:05.4]} 35. Bc6+ {[%clk 0:02:23.9]} 35... Rxc6 {[%clk 0:00:04.8]} 36.
Rb7 {[%clk 0:02:16]} 1-0

[Event "Late-Titled-Tuesday-Blitz-April-30-2024"]
[Site "Chess.com"]
[Date "2024.04.30"]
[Round "8"]
[White "KorolDimitriy75"]
[Black "EsmeraldasAnderson03"]
[Result "0-1"]
[WhiteElo "2366"]
[BlackElo "2529"]
[TimeControl "180+1"]
[EndTime "15:26:05 PDT"]
[Termination "EsmeraldasAnderson03 won on time"]

1. d4 {[%clk 0:03:00.9]} 1... d5 {[%clk 0:02:54.7]} 2. c4 {[%clk 0:03:01.3]}
2... dxc4 {[%clk 0:02:55.6]} 3. Nf3 {[%clk 0:03:00.8]} 3... Nf6 {[%clk
0:02:55.9]} 4. Nc3 {[%clk 0:03:01.4]} 4... a6 {[%clk 0:02:56.6]} 5. e4 {[%clk
0:03:01.4]} 5... b5 {[%clk 0:02:55]} 6. e5 {[%clk 0:03:02.3]} 6... Nd5 {[%clk
0:02:54.7]} 7. a4 {[%clk 0:03:03]} 7... Nxc3 {[%clk 0:02:52.2]} 8. bxc3 {[%clk
0:03:03.9]} 8... c6 {[%clk 0:02:53]} 9. Ba3 {[%clk 0:02:57.6]} 9... Bb7 {[%clk
0:02:52.5]} 10. Be2 {[%clk 0:02:19.2]} 10... e6 {[%clk 0:02:45.9]} 11. Bxf8
{[%clk 0:02:17.1]} 11... Kxf8 {[%clk 0:02:46.8]} 12. O-O {[%clk 0:02:09.9]}
12... Nd7 {[%clk 0:02:46.6]} 13. Rb1 {[%clk 0:01:47.7]} 13... Nb6 {[%clk
0:02:45.6]} 14. axb5 {[%clk 0:01:22.2]} 14... cxb5 {[%clk 0:02:44.6]} 15. Qd2
{[%clk 0:01:21.8]} 15... Qe7 {[%clk 0:02:37.4]} 16. Ng5 {[%clk 0:01:07.4]} 16...
g6 {[%clk 0:02:35.7]} 17. f4 {[%clk 0:01:04.4]} 17... Kg7 {[%clk 0:02:34.9]} 18.
Bf3 {[%clk 0:01:00.6]} 18... h6 {[%clk 0:02:28.9]} 19. Ne4 {[%clk 0:00:52.8]}
19... Bxe4 {[%clk 0:02:27.7]} 20. Bxe4 {[%clk 0:00:53.7]} 20... Ra7 {[%clk
0:02:26.6]} 21. Rf3 {[%clk 0:00:20.2]} 21... Nd5 {[%clk 0:02:19.2]} 22. g4
{[%clk 0:00:17.6]} 22... b4 {[%clk 0:02:11.7]} 23. f5 {[%clk 0:00:07.1]} 23...
gxf5 {[%clk 0:02:08]} 24. gxf5 {[%clk 0:00:08]} 24... Qg5+ {[%clk 0:02:07.9]}
25. Rg3 {[%clk 0:00:06.6]} 25... Rg8 {[%clk 0:01:59.7]} 26. Rxg5+ {[%clk
0:00:05]} 26... hxg5 {[%clk 0:02:00.6]} 27. Bxd5 {[%clk 0:00:04.9]} 27... exd5
{[%clk 0:02:00.5]} 28. Rxb4 {[%clk 0:00:04.1]} 28... f6 {[%clk 0:01:59.7]} 29.
e6 {[%clk 0:00:03.5]} 29... a5 {[%clk 0:01:58.5]} 30. Ra4 {[%clk 0:00:03.5]}
30... Rb8 {[%clk 0:01:56.9]} 0-1

[Event "Late-Titled-Tuesday-Blitz-April-30-2024"]
[Site "Chess.com"]
[Date "2024.04.30"]
[Round "8"]
[White "Zhigalko_Sergei"]
[Black "h4parah5"]
[Result "0-1"]
[WhiteElo "2880"]
[BlackElo "3033"]
[TimeControl "180+1"]
[EndTime "15:26:14 PDT"]
[Termination "h4parah5 won on time"]

1. e4 {[%clk 0:03:00.9]} 1... e6 {[%clk 0:02:59.8]} 2. d4 {[%clk 0:03:01.1]}
2... d5 {[%clk 0:03:00.7]} 3. e5 {[%clk 0:03:01.8]} 3... c5 {[%clk 0:03:00.3]}
4. c3 {[%clk 0:03:02.6]} 4... Nc6 {[%clk 0:03:00.6]} 5. Nf3 {[%clk 0:03:03.2]}
5... Qb6 {[%clk 0:03:00.2]} 6. a3 {[%clk 0:03:00.8]} 6... Bd7 {[%clk 0:02:59.2]}
7. b4 {[%clk 0:03:00.7]} 7... cxd4 {[%clk 0:02:58.5]} 8. cxd4 {[%clk 0:03:01.6]}
8... Rc8 {[%clk 0:02:58.5]} 9. Bb2 {[%clk 0:03:02.2]} 9... Na5 {[%clk 0:02:57]}
10. Nbd2 {[%clk 0:03:02.3]} 10... Nc4 {[%clk 0:02:57.2]} 11. Nxc4 {[%clk
0:03:01.9]} 11... dxc4 {[%clk 0:02:58.1]} 12. Rc1 {[%clk 0:03:02.3]} 12... Qa6
{[%clk 0:02:58]} 13. d5 {[%clk 0:03:01.5]} 13... exd5 {[%clk 0:02:58.9]} 14.
Qxd5 {[%clk 0:03:01.8]} 14... Ne7 {[%clk 0:02:59]} 15. Qd2 {[%clk 0:02:43]}
15... Be6 {[%clk 0:02:57.6]} 16. Nd4 {[%clk 0:02:38.5]} 16... b5 {[%clk
0:02:49.6]} 17. Be2 {[%clk 0:02:35.6]} 17... g6 {[%clk 0:02:45.2]} 18. O-O
{[%clk 0:02:25.1]} 18... h5 {[%clk 0:02:44]} 19. a4 {[%clk 0:02:08.1]} 19... Bh6
{[%clk 0:02:41.3]} 20. f4 {[%clk 0:02:04.1]} 20... bxa4 {[%clk 0:02:40.4]} 21.
Nxe6 {[%clk 0:01:32.8]} 21... Qxe6 {[%clk 0:02:41.3]} 22. Qd4 {[%clk 0:00:45.2]}
22... Nf5 {[%clk 0:02:37.4]} 23. Qxa7 {[%clk 0:00:40.7]} 23... O-O {[%clk
0:02:36.4]} 24. Qxa4 {[%clk 0:00:36.4]} 24... Qb6+ {[%clk 0:02:24.8]} 25. Kh1
{[%clk 0:00:35.3]} 25... Ra8 {[%clk 0:02:10.2]} 26. Qc2 {[%clk 0:00:14.2]} 26...
Ne3 {[%clk 0:02:09.6]} 27. Qe4 {[%clk 0:00:14.7]} 27... Nxf1 {[%clk 0:02:07.7]}
28. Rxf1 {[%clk 0:00:15.6]} 28... Ra2 {[%clk 0:02:02.2]} 29. Bd4 {[%clk
0:00:13.8]} 29... Rxe2 {[%clk 0:01:59]} 30. Qd5 {[%clk 0:00:09.4]} 30... Rd2
{[%clk 0:01:55.7]} 31. Bxb6 {[%clk 0:00:05.8]} 31... Rxd5 {[%clk 0:01:54.9]} 32.
g3 {[%clk 0:00:06.7]} 32... Rb8 {[%clk 0:01:53.9]} 33. Bc5 {[%clk 0:00:06.9]}
33... Bf8 {[%clk 0:01:54.1]} 0-1

[Event "Late-Titled-Tuesday-Blitz-April-30-2024"]
[Site "Chess.com"]
[Date "2024.04.30"]
[Round "8"]
[White "egnfanclub"]
[Black "yuki_chess123"]
[Result "1-0"]
[WhiteElo "2362"]
[BlackElo "2122"]
[TimeControl "180+1"]
[EndTime "15:26:36 PDT"]
[Termination "egnfanclub won by resignation"]

1. e4 {[%clk 0:03:00.9]} 1... g6 {[%clk 0:02:59.9]} 2. Nc3 {[%clk 0:02:59.2]}
2... Bg7 {[%clk 0:03:00.5]} 3. f4 {[%clk 0:02:59.7]} 3... c6 {[%clk 0:03:00.8]}
4. Nf3 {[%clk 0:02:49.9]} 4... d5 {[%clk 0:02:58.8]} 5. e5 {[%clk 0:02:46.7]}
5... Nh6 {[%clk 0:02:59]} 6. d4 {[%clk 0:02:44.2]} 6... f6 {[%clk 0:02:59.4]} 7.
Be2 {[%clk 0:02:39.9]} 7... Bg4 {[%clk 0:02:59.8]} 8. O-O {[%clk 0:02:38.8]}
8... O-O {[%clk 0:02:57.8]} 9. h3 {[%clk 0:02:38.7]} 9... Bxf3 {[%clk
0:02:57.5]} 10. Bxf3 {[%clk 0:02:39.6]} 10... fxe5 {[%clk 0:02:45.1]} 11. fxe5
{[%clk 0:02:38.1]} 11... Nf5 {[%clk 0:02:45.1]} 12. Ne2 {[%clk 0:02:21.2]} 12...
Qb6 {[%clk 0:02:43.4]} 13. Kh2 {[%clk 0:02:09.7]} 13... Nxd4 {[%clk 0:02:36.6]}
14. Nxd4 {[%clk 0:02:02]} 14... Bxe5+ {[%clk 0:02:34.4]} 15. Kh1 {[%clk
0:02:02.4]} 15... Qxd4 {[%clk 0:02:31.5]} 16. Qe1 {[%clk 0:01:45.4]} 16... Bf6
{[%clk 0:01:17.9]} 17. Bh6 {[%clk 0:01:38.2]} 17... Rd8 {[%clk 0:00:58.8]} 18.
Qe6+ {[%clk 0:01:27.9]} 18... Kh8 {[%clk 0:00:58]} 19. c3 {[%clk 0:01:17.3]}
19... Qe5 {[%clk 0:00:39.5]} 20. Qf7 {[%clk 0:01:14.3]} 20... Nd7 {[%clk
0:00:36.9]} 21. Rae1 {[%clk 0:01:13.9]} 21... Qg3 {[%clk 0:00:26.2]} 22. Rxe7
{[%clk 0:01:06.2]} 1-0

[Event "Late-Titled-Tuesday-Blitz-April-30-2024"]
[Site "Chess.com"]
[Date "2024.04.30"]
[Round "8"]
[White "pirulillo"]
[Black "Hilary46"]
[Result "0-1"]
[WhiteElo "2338"]
[BlackElo "2724"]
[TimeControl "180+1"]
[EndTime "15:26:45 PDT"]
[Termination "Hilary46 won on time"]

1. e4 {[%clk 0:02:59.6]} 1... e5 {[%clk 0:03:00.2]} 2. Bc4 {[%clk 0:02:57]} 2...
Nf6 {[%clk 0:02:59.9]} 3. Nc3 {[%clk 0:02:56.7]} 3... Nxe4 {[%clk 0:03:00.5]} 4.
Nf3 {[%clk 0:02:53.5]} 4... Nc6 {[%clk 0:02:58.5]} 5. O-O {[%clk 0:02:25.6]}
5... Nxc3 {[%clk 0:02:54.6]} 6. dxc3 {[%clk 0:02:22.2]} 6... f6 {[%clk
0:02:55.2]} 7. Re1 {[%clk 0:02:12.8]} 7... d6 {[%clk 0:02:52.3]} 8. b4 {[%clk
0:01:44.7]} 8... Qe7 {[%clk 0:02:50.4]} 9. a4 {[%clk 0:01:32.1]} 9... Be6 {[%clk
0:02:49.7]} 10. Bxe6 {[%clk 0:01:29.1]} 10... Qxe6 {[%clk 0:02:50.6]} 11. b5
{[%clk 0:01:25.8]} 11... Ne7 {[%clk 0:02:49.6]} 12. a5 {[%clk 0:01:14]} 12... a6
{[%clk 0:02:45]} 13. bxa6 {[%clk 0:01:06.1]} 13... Rxa6 {[%clk 0:02:45.9]} 14.
Rb1 {[%clk 0:01:01.7]} 14... Qd5 {[%clk 0:02:46]} 15. Qe2 {[%clk 0:00:55.2]}
15... Rxa5 {[%clk 0:02:27.8]} 16. c4 {[%clk 0:00:55.1]} 16... Qc6 {[%clk
0:02:28.1]} 17. Bd2 {[%clk 0:00:54.9]} 17... Ra6 {[%clk 0:02:23.3]} 18. Nh4
{[%clk 0:00:46.6]} 18... g6 {[%clk 0:02:22.9]} 19. f4 {[%clk 0:00:45.7]} 19...
Bg7 {[%clk 0:02:21.7]} 20. f5 {[%clk 0:00:40]} 20... O-O {[%clk 0:01:59.4]} 21.
fxg6 {[%clk 0:00:39.6]} 21... hxg6 {[%clk 0:02:00.3]} 22. Qg4 {[%clk 0:00:39.3]}
22... f5 {[%clk 0:01:54.6]} 23. Qg3 {[%clk 0:00:33.6]} 23... Qxc4 {[%clk
0:01:49.5]} 24. Bg5 {[%clk 0:00:28.5]} 24... Bf6 {[%clk 0:01:46.2]} 25. Bxf6
{[%clk 0:00:18.4]} 25... Rxf6 {[%clk 0:01:47.1]} 26. Qg5 {[%clk 0:00:18.8]}
26... Kg7 {[%clk 0:01:40.3]} 27. Rxb7 {[%clk 0:00:18]} 27... Ra2 {[%clk
0:01:29.2]} 28. Nf3 {[%clk 0:00:05.6]} 28... Rxc2 {[%clk 0:01:24.3]} 29. h4
{[%clk 0:00:01.9]} 29... Qg4 {[%clk 0:01:17.8]} 0-1

[Event "Late-Titled-Tuesday-Blitz-April-30-2024"]
[Site "Chess.com"]
[Date "2024.04.30"]
[Round "8"]
[White "Atanejhad"]
[Black "Iuckyducky"]
[Result "1-0"]
[WhiteElo "2447"]
[BlackElo "2234"]
[TimeControl "180+1"]
[EndTime "15:26:57 PDT"]
[Termination "Atanejhad won on time"]

1. e4 {[%clk 0:03:00.9]} 1... c5 {[%clk 0:02:59.7]} 2. Nf3 {[%clk 0:02:59.6]}
2... e6 {[%clk 0:03:00.1]} 3. c3 {[%clk 0:02:59.4]} 3... Nf6 {[%clk 0:02:59.9]}
4. Bd3 {[%clk 0:02:58.2]} 4... Nc6 {[%clk 0:02:54.3]} 5. Bc2 {[%clk 0:02:56.8]}
5... d5 {[%clk 0:02:54.5]} 6. exd5 {[%clk 0:02:55.1]} 6... exd5 {[%clk
0:02:53.7]} 7. d4 {[%clk 0:02:55.1]} 7... cxd4 {[%clk 0:01:36.4]} 8. Nxd4 {[%clk
0:02:45.7]} 8... Bc5 {[%clk 0:01:33.7]} 9. Nxc6 {[%clk 0:02:44.2]} 9... bxc6
{[%clk 0:01:34.6]} 10. O-O {[%clk 0:02:43.2]} 10... O-O {[%clk 0:01:34.2]} 11.
Bg5 {[%clk 0:02:40]} 11... h6 {[%clk 0:01:34.7]} 12. Bh4 {[%clk 0:02:39.7]}
12... Qd6 {[%clk 0:01:33.8]} 13. Nd2 {[%clk 0:02:35.4]} 13... Bg4 {[%clk
0:01:33.8]} 14. Nf3 {[%clk 0:02:27.8]} 14... Rab8 {[%clk 0:00:52.2]} 15. b4
{[%clk 0:02:24.6]} 15... Bb6 {[%clk 0:00:50.3]} 16. Bg3 {[%clk 0:02:22.9]} 16...
Qd7 {[%clk 0:00:49.5]} 17. Bxb8 {[%clk 0:02:21.8]} 17... Rxb8 {[%clk 0:00:50.4]}
18. Ne5 {[%clk 0:02:12.9]} 18... Bxd1 {[%clk 0:00:49.3]} 19. Nxd7 {[%clk
0:02:12.4]} 19... Nxd7 {[%clk 0:00:41.6]} 20. Raxd1 {[%clk 0:02:10.5]} 20... Ne5
{[%clk 0:00:33.6]} 21. Rfe1 {[%clk 0:02:07.5]} 21... Ng4 {[%clk 0:00:23.8]} 22.
Re2 {[%clk 0:02:06.8]} 22... Kf8 {[%clk 0:00:22.2]} 23. h3 {[%clk 0:02:06.1]}
23... Nf6 {[%clk 0:00:19]} 24. a4 {[%clk 0:02:04.1]} 24... a5 {[%clk 0:00:18.3]}
25. g4 {[%clk 0:01:55.1]} 25... axb4 {[%clk 0:00:17.6]} 26. cxb4 {[%clk
0:01:56]} 26... Bc7 {[%clk 0:00:17.5]} 27. Rb1 {[%clk 0:01:51.9]} 27... Nd7
{[%clk 0:00:11.2]} 28. Bf5 {[%clk 0:01:46.6]} 28... Nb6 {[%clk 0:00:11.2]} 29.
a5 {[%clk 0:01:44.2]} 29... Nc4 {[%clk 0:00:11.5]} 30. a6 {[%clk 0:01:44.2]}
30... Ra8 {[%clk 0:00:10]} 31. b5 {[%clk 0:01:42.7]} 31... cxb5 {[%clk
0:00:09.7]} 32. Rxb5 {[%clk 0:01:42]} 32... Rxa6 {[%clk 0:00:09.9]} 33. Rxd5
{[%clk 0:01:41.4]} 33... g6 {[%clk 0:00:08.5]} 34. Bd3 {[%clk 0:01:40.2]} 34...
Ra1+ {[%clk 0:00:08.2]} 35. Kg2 {[%clk 0:01:39.8]} 35... Ne5 {[%clk 0:00:08.6]}
36. Rexe5 {[%clk 0:01:37.7]} 36... Bxe5 {[%clk 0:00:08.5]} 37. Rxe5 {[%clk
0:01:38.6]} 37... Ra3 {[%clk 0:00:05.1]} 38. Rd5 {[%clk 0:01:37.9]} 38... Kg7
{[%clk 0:00:04.5]} 39. Rd7 {[%clk 0:01:36.9]} 39... Rc3 {[%clk 0:00:03.4]} 40.
Be4 {[%clk 0:01:35.4]} 40... Kf8 {[%clk 0:00:01.4]} 41. Bd5 {[%clk 0:01:35]} 1-0

[Event "Late-Titled-Tuesday-Blitz-April-30-2024"]
[Site "Chess.com"]
[Date "2024.04.30"]
[Round "8"]
[White "Slovak_fighter2000"]
[Black "rhungaski"]
[Result "1-0"]
[WhiteElo "2474"]
[BlackElo "2553"]
[TimeControl "180+1"]
[EndTime "15:26:59 PDT"]
[Termination "Slovak_fighter2000 won by resignation"]

1. c4 {[%clk 0:03:00]} 1... g6 {[%clk 0:02:59.7]} 2. Nc3 {[%clk 0:02:59.4]} 2...
Bg7 {[%clk 0:03:00.3]} 3. Nf3 {[%clk 0:02:58.7]} 3... d6 {[%clk 0:03:00.3]} 4.
d4 {[%clk 0:02:59.1]} 4... c5 {[%clk 0:02:59]} 5. d5 {[%clk 0:02:53.3]} 5...
Bxc3+ {[%clk 0:02:53.7]} 6. bxc3 {[%clk 0:02:53.4]} 6... f5 {[%clk 0:02:53.1]}
7. h4 {[%clk 0:02:49.1]} 7... Nf6 {[%clk 0:02:50.9]} 8. h5 {[%clk 0:02:37.7]}
8... Nxh5 {[%clk 0:02:47.3]} 9. Rxh5 {[%clk 0:02:36.3]} 9... gxh5 {[%clk
0:02:48.2]} 10. e4 {[%clk 0:02:36.4]} 10... Qa5 {[%clk 0:02:43.5]} 11. Bd2
{[%clk 0:02:32.4]} 11... Nd7 {[%clk 0:02:33.5]} 12. Ng5 {[%clk 0:02:05.7]} 12...
Nf6 {[%clk 0:02:32.3]} 13. Be2 {[%clk 0:02:05.6]} 13... Ng4 {[%clk 0:02:06.9]}
14. Qc2 {[%clk 0:01:40.5]} 14... h6 {[%clk 0:02:00]} 15. Nh3 {[%clk 0:01:37.2]}
15... Bd7 {[%clk 0:01:53.3]} 16. Nf4 {[%clk 0:01:21.9]} 16... O-O-O {[%clk
0:01:34.6]} 17. Ng6 {[%clk 0:01:11.8]} 17... Rhe8 {[%clk 0:01:27.9]} 18. exf5
{[%clk 0:01:05.8]} 18... b5 {[%clk 0:00:58.1]} 19. cxb5 {[%clk 0:01:01.3]} 19...
c4 {[%clk 0:00:41.1]} 20. Bxc4 {[%clk 0:00:56.2]} 20... Kb8 {[%clk 0:00:41.1]}
21. Be2 {[%clk 0:00:52.8]} 21... Nf6 {[%clk 0:00:35.5]} 22. c4 {[%clk
0:00:50.4]} 22... Qa3 {[%clk 0:00:35.8]} 23. Rb1 {[%clk 0:00:42.4]} 23... Rc8
{[%clk 0:00:33.5]} 24. Bb4 {[%clk 0:00:32.2]} 1-0

[Event "Late-Titled-Tuesday-Blitz-April-30-2024"]
[Site "Chess.com"]
[Date "2024.04.30"]
[Round "8"]
[White "Shankland"]
[Black "DanielNaroditsky"]
[Result "1-0"]
[WhiteElo "2973"]
[BlackElo "3032"]
[TimeControl "180+1"]
[EndTime "15:27:00 PDT"]
[Termination "Shankland won by resignation"]

1. d4 {[%clk 0:03:00.9]} 1... Nf6 {[%clk 0:03:00.9]} 2. c4 {[%clk 0:03:00.9]}
2... g6 {[%clk 0:03:01.4]} 3. Nc3 {[%clk 0:03:00.3]} 3... Bg7 {[%clk 0:03:02]}
4. e4 {[%clk 0:03:00.6]} 4... d6 {[%clk 0:03:02.7]} 5. Nf3 {[%clk 0:03:01.2]}
5... O-O {[%clk 0:03:03.2]} 6. Be2 {[%clk 0:03:01.8]} 6... Na6 {[%clk
0:03:03.9]} 7. O-O {[%clk 0:03:01.5]} 7... e5 {[%clk 0:03:04.6]} 8. Be3 {[%clk
0:02:59.5]} 8... Qe7 {[%clk 0:03:04.6]} 9. Bg5 {[%clk 0:02:55.7]} 9... exd4
{[%clk 0:02:53.7]} 10. Nd5 {[%clk 0:02:41.5]} 10... Qd8 {[%clk 0:02:53.7]} 11.
Nxd4 {[%clk 0:02:35.8]} 11... Nc5 {[%clk 0:02:45]} 12. f3 {[%clk 0:02:32.5]}
12... c6 {[%clk 0:02:42.2]} 13. Nxf6+ {[%clk 0:02:31.3]} 13... Bxf6 {[%clk
0:02:43.1]} 14. Bxf6 {[%clk 0:02:31.6]} 14... Qxf6 {[%clk 0:02:43.8]} 15. Qd2
{[%clk 0:02:32.2]} 15... Rd8 {[%clk 0:02:37.6]} 16. Rad1 {[%clk 0:02:30.9]}
16... d5 {[%clk 0:02:32.3]} 17. exd5 {[%clk 0:02:14.2]} 17... cxd5 {[%clk
0:02:33.2]} 18. b4 {[%clk 0:02:14.5]} 18... Ne6 {[%clk 0:02:31]} 19. c5 {[%clk
0:02:14]} 19... Nf4 {[%clk 0:02:29.9]} 20. Rfe1 {[%clk 0:02:10.6]} 20... Bd7
{[%clk 0:02:21.3]} 21. Bf1 {[%clk 0:02:09.6]} 21... Ba4 {[%clk 0:02:15.9]} 22.
Rc1 {[%clk 0:02:05.4]} 22... a6 {[%clk 0:02:02.3]} 23. g3 {[%clk 0:01:58.8]}
23... Ne6 {[%clk 0:01:59.5]} 24. Nxe6 {[%clk 0:01:58.9]} 24... fxe6 {[%clk
0:02:00.4]} 25. f4 {[%clk 0:01:59.2]} 25... Bc6 {[%clk 0:01:34.3]} 26. Bh3
{[%clk 0:01:56.1]} 26... d4 {[%clk 0:01:20.4]} 27. Re5 {[%clk 0:01:54.7]} 27...
d3 {[%clk 0:01:14.8]} 28. Rce1 {[%clk 0:01:52.2]} 28... Kh8 {[%clk 0:01:12.4]}
29. Bxe6 {[%clk 0:01:44.9]} 29... a5 {[%clk 0:01:12.2]} 30. bxa5 {[%clk
0:01:40.5]} 30... Rd4 {[%clk 0:01:12.3]} 31. Bb3 {[%clk 0:01:36.1]} 31... Rad8
{[%clk 0:01:11.2]} 32. a6 {[%clk 0:01:31.2]} 32... Ra8 {[%clk 0:00:41.3]} 33.
Re6 {[%clk 0:01:29]} 33... Qd8 {[%clk 0:00:20.4]} 34. Qc3 {[%clk 0:01:24.4]}
34... Rxa6 {[%clk 0:00:06.6]} 35. Re8+ {[%clk 0:01:19.7]} 35... Bxe8 {[%clk
0:00:06.1]} 36. Rxe8+ {[%clk 0:01:19.7]} 1-0